fUSD/lending_fUSD_20250305
["ID","MTS","AMOUNT","RATE_DAILY","PERIOD"]
[355500453,1741205476728,-500.0,0.00012904,2]
[355500454,1741205476738,-773.72,0.00012904,2]
[355500455,1741205476747,-2754.03,0.00012904,2]
[355500456,1741205476757,-500.0,0.00012904,2]
[355500457,1741205476767,-1986.3,0.00012904,2]
[355500458,1741205476777,-500.0,0.00012904,2]
[355500459,1741205476787,-548.21,0.00012904,2]
[355500460,1741205476796,-500.0,0.00012904,2]
[355500461,1741205476805,-1109.28,0.00012904,2]
[355500462,1741205476815,-599.55,0.00012904,2]
[355500463,1741205476825,-500.0,0.00012904,2]
[355500464,1741205476836,-801.3,0.00012904,2]
[355500465,1741205476846,-527.25,0.00012904,2]
[355500466,1741205476857,-500.0,0.00012904,2]
[355500467,1741205476866,-1609.54,0.00012904,2]
[355500468,1741205476876,-500.0,0.00012904,2]
[355500469,1741205476886,-500.0,0.00012904,2]
[355500470,1741205476896,-1428.6,0.00012904,2]
[355500471,1741205476906,-5380.77,0.00012904,2]
[355500472,1741205476916,-821.99,0.00012904,2]
[355500473,1741205476928,-1272.62,0.00012904,2]
[355500474,1741205476937,-1234.64,0.00012904,2]
[355500475,1741205476947,-3674.78,0.00012904,2]
[355500476,1741205476958,-845.47,0.00012904,2]
[355500477,1741205476969,-1046.94,0.00012904,2]
[355500478,1741205476979,-714.38,0.00012904,2]
[355500479,1741205476988,-1025.38,0.00012904,2]
[355500480,1741205476998,-591.13,0.00012904,2]
[355500481,1741205477009,-234.3543053,0.00012904,2]
[355500482,1741205477019,-925.21,0.00012904,2]
[355500483,1741205477028,-673.63,0.00012904,2]
[355500484,1741205477038,-1235.82,0.00012904,2]
[355500485,1741205477047,-500.0,0.00012904,2]
[355500486,1741205477057,-675.94,0.00012904,2]
[355500487,1741205477066,-500.0,0.00012904,2]
[355500488,1741205477076,-2957.67,0.00012904,2]
[355500489,1741205477086,-3571.26,0.00012904,2]
[355500490,1741205477096,-500.0,0.00012904,2]
[355500491,1741205477105,-432.79374823,0.00012904,2]
[355500492,1741205477115,-872.34,0.00012904,2]
[355500493,1741205477125,-662.374718,0.00012904,2]
[355500494,1741205477135,-612.52,0.00012904,2]
[355500495,1741205477144,-1907.35,0.00012904,2]
[355500496,1741205477155,-5745.98,0.00012904,2]
[355500497,1741205477164,-1028.39,0.00012904,2]
[355500498,1741205477174,-6878.7,0.00012904,2]
[355500499,1741205477184,-500.0,0.00012904,2]
[355500500,1741205477193,-6936.41,0.00012904,2]
[355500501,1741205477203,-841.650641,0.00012904,2]
[355500502,1741205477213,-500.0,0.00012904,2]
[355500503,1741205477223,-1642.26,0.00012904,2]
[355500504,1741205477233,-932.81,0.00012904,2]
[355500505,1741205477243,-2575.51,0.00012904,2]
[355500506,1741205477252,-693.83,0.00012904,2]
[355500507,1741205477261,-1627.56,0.00012904,2]
[355500508,1741205477270,-782.79,0.00012904,2]
[355500509,1741205477279,-500.0,0.00012904,2]
[355500510,1741205477288,-3676.77,0.00012904,2]
[355500511,1741205477298,-158.9,0.00012904,2]
[355500512,1741205477307,-1111.85,0.00012904,2]
[355500513,1741205477317,-2858.59,0.00012904,2]
[355500514,1741205477326,-1092.05,0.00012904,2]
[355500515,1741205477335,-1259.85,0.00012904,2]
[355500516,1741205477345,-632.35,0.00012904,2]
[355500517,1741205477354,-730.16,0.00012904,2]
[355500518,1741205477363,-500.0,0.00012904,2]
[355500519,1741205477373,-1116.48,0.00012904,2]
[355500520,1741205477382,-500.0,0.00012904,2]
[355500521,1741205477392,-849.42,0.00012904,2]
[355500522,1741205477401,-500.97,0.00012904,2]
[355500523,1741205477411,-500.0,0.00012904,2]
[355500524,1741205477420,-1088.52,0.00012904,2]
[355500525,1741205477429,-993.63,0.00012904,2]
[355500526,1741205477439,-778.35,0.00012904,2]
[355500527,1741205477448,-796.9,0.00012904,2]
[355500528,1741205477459,-510.87,0.00012904,2]
[355500529,1741205477469,-452.12417031,0.00012904,2]
[355500530,1741205477483,-604.2,0.00012904,2]
[355500531,1741205477492,-938.73,0.00012904,2]
[355500532,1741205477501,-3045.86,0.00012904,2]
[355500533,1741205477511,-1020.3,0.00012904,2]
[355500534,1741205477520,-500.0,0.00012904,2]
[355500535,1741205477530,-845.95,0.00012904,2]
[355500536,1741205477539,-760.95,0.00012904,2]
[355500537,1741205477548,-500.0,0.00012904,2]
[355500538,1741205477557,-1359.7,0.00012904,2]
[355500539,1741205477566,-500.0,0.00012904,2]
[355500540,1741205477575,-1074.76,0.00012904,2]
[355500541,1741205477585,-699.94,0.00012904,2]
[355500542,1741205477594,-500.0,0.00012904,2]
[355500543,1741205477605,-976.36,0.00012904,2]
[355500544,1741205477615,-970.24,0.00012904,2]
[355500545,1741205477624,-500.0,0.00012904,2]
[355500546,1741205477633,-1773.97,0.00012904,2]
[355500547,1741205477643,-1694.26,0.00012904,2]
[355500548,1741205477654,-1011.6,0.00012904,2]
[355500549,1741205477663,-874.5,0.00012904,2]
[355500550,1741205477673,-2039.27,0.00012904,2]
[355500551,1741205477683,-561.9,0.00012904,2]
[355500552,1741205477693,-539.09,0.00012904,2]
[355500553,1741205477702,-1026.8,0.00012904,2]
[355500554,1741205477711,-500.0,0.00012905,2]
[355500555,1741205477721,-391.63512641,0.00012905,2]
[355500556,1741205477731,-500.0,0.00012905,2]
[355500557,1741205477740,-500.0,0.00012905,2]
[355500558,1741205477750,-519.09,0.00012905,2]
[355500559,1741205477759,-500.0,0.00012905,2]
[355500560,1741205477769,-500.0,0.00012905,2]
[355500561,1741205477779,-502.88,0.00012905,2]
[355500562,1741205477788,-500.0,0.00012905,2]
[355500563,1741205477796,-500.0,0.00012905,2]
[355500564,1741205477805,-500.0,0.00012905,2]
[355500565,1741205477814,-500.0,0.00012905,2]
[355500566,1741205477823,-500.0,0.00012905,2]
[355500567,1741205477832,-525.15665651,0.00012905,2]
[355500568,1741205477841,-500.0,0.00012905,2]
[355500569,1741205477851,-500.0,0.00012905,2]
[355500570,1741205477860,-500.0,0.00012905,2]
[355500571,1741205477869,-500.0,0.00012905,2]
[355500572,1741205477879,-500.0,0.00012905,2]
[355500573,1741205477888,-500.0,0.00012905,2]
[355500574,1741205477897,-516.2,0.00012905,2]
[355500575,1741205477906,-500.0,0.00012905,2]
[355500576,1741205477915,-544.34,0.00012905,2]
[355500577,1741205477928,-500.0,0.00012905,2]
[355500578,1741205477937,-500.0,0.00012905,2]
[355500579,1741205477946,-746.05,0.00012905,2]
[355500580,1741205477956,-500.0,0.00012905,2]
[355500581,1741205477967,-500.0,0.00012905,2]
[355500582,1741205477976,-636.69,0.00012905,2]
[355500583,1741205477985,-552.02,0.00012905,2]
[355500584,1741205477995,-500.0,0.00012905,2]
[355500585,1741205478005,-500.0,0.00012905,2]
[355500586,1741205478015,-500.0,0.00012905,2]
[355500587,1741205478025,-500.0,0.00012905,2]
[355500588,1741205478034,-500.0,0.00012905,2]
[355500589,1741205478044,-500.0,0.00012905,2]
[355500590,1741205478053,-500.0,0.00012905,2]
[355500591,1741205478063,-500.0,0.00012905,2]
[355500592,1741205478073,-500.0,0.00012905,2]
[355500593,1741205478083,-500.0,0.00012905,2]
[355500594,1741205478092,-500.0,0.00012905,2]
[355500595,1741205478102,-500.0,0.00012905,2]
[355500596,1741205478112,-874.96,0.00012905,2]
[355500597,1741205478121,-500.0,0.00012905,2]
[355500598,1741205478132,-652.99,0.00012905,2]
[355500599,1741205478141,-773.98,0.00012905,2]
[355500600,1741205478151,-1280.62,0.00012905,2]
[355500601,1741205478162,-500.0,0.00012905,2]
[355500602,1741205478171,-869.22,0.00012905,2]
[355500603,1741205478181,-500.0,0.00012905,2]
[355500604,1741205478191,-518.43,0.00012905,2]
[355500605,1741205478200,-500.0,0.00012905,2]
[355500606,1741205478210,-890.97,0.00012905,2]
[355500607,1741205478219,-744.45,0.00012905,2]
[355500608,1741205478229,-803.34,0.00012905,2]
[355500609,1741205478239,-500.0,0.00012905,2]
[355500610,1741205478249,-667.83,0.00012905,2]
[355500611,1741205478259,-500.0,0.00012905,2]
[355500612,1741205478268,-500.0,0.00012905,2]
[355500613,1741205478277,-914.76,0.00012905,2]
[355500614,1741205478287,-500.0,0.00012905,2]
[355500615,1741205478296,-709.91,0.00012905,2]
[355500616,1741205478306,-565.64,0.00012905,2]
[355500617,1741205478315,-500.0,0.00012905,2]
[355500618,1741205478324,-662.57,0.00012905,2]
[355500619,1741205478334,-1061.8,0.00012905,2]
[355500620,1741205478344,-503.78,0.00012905,2]
[355500621,1741205478353,-836.1,0.00012905,2]
[355500622,1741205478363,-1411.23,0.00012905,2]
[355500623,1741205478372,-704.33,0.00012905,2]
[355500624,1741205478381,-1374.74,0.00012905,2]
[355500625,1741205478391,-663.46,0.00012905,2]
[355500626,1741205478400,-882.89,0.00012905,2]
[355500627,1741205478409,-500.0,0.00012905,2]
[355500628,1741205478419,-1264.68,0.00012905,2]
[355500629,1741205478428,-500.0,0.00012905,2]
[355500630,1741205478438,-1075.79,0.00012905,2]
[355500631,1741205478448,-747.25,0.00012905,2]
[355500632,1741205478459,-500.0,0.00012905,2]
[355500633,1741205478468,-539.15,0.00012905,2]
[355500634,1741205478478,-500.0,0.00012905,2]
[355500635,1741205478487,-500.0,0.00012905,2]
[355500636,1741205478497,-784.27,0.00012905,2]
[355500637,1741205478506,-500.0,0.00012905,2]
[355500638,1741205478515,-500.0,0.00012905,2]
[355500639,1741205478525,-500.0,0.00012905,2]
[355500640,1741205478534,-785.71,0.00012905,2]
[355500641,1741205478543,-500.0,0.00012906,2]
[355500642,1741205478553,-8000.0,0.00012924,5]
[355500643,1741205478563,-1216.22,0.00012948,2]
[355500644,1741205478572,-5800.0,0.00012957,2]
[355500645,1741205478582,-5800.0,0.00012959,2]
[355500646,1741205478591,-5800.0,0.00012964,2]
[355500647,1741205478600,-5800.0,0.00012965,2]
[355500648,1741205478610,-5800.0,0.00012967,2]
[355500649,1741205478619,-5800.0,0.00012967,2]
[355500650,1741205478629,-1773.97,0.00012972,2]
[355500651,1741205478638,-1773.97,0.00012972,2]
[355500652,1741205478648,-1773.97,0.00012972,2]
[355500653,1741205478657,-1773.97,0.00012972,2]
[355500654,1741205478667,-1773.99276424,0.00012972,2]
[355500655,1741205478677,-27371.59620871,0.00012973,2]
[355500656,1741205479689,-500.0,0.0001126,2]
[355500657,1741205479699,-500.0,0.0001126,2]
[355500658,1741205479709,-500.0,0.0001126,2]
[355500659,1741205479719,-163.792,0.00011298,2]
[355500660,1741205479729,-163.792,0.00011298,2]
[355500661,1741205479738,-163.792,0.00011298,2]
[355500662,1741205479748,-245.3515732,0.00011533,2]
[355500663,1741205480414,-3609.53550775,0.00011099,2]
[355500664,1741205480424,-476.8284268,0.00011533,2]
[355500665,1741205480434,-625.03511259,0.00011728,2]
[355500666,1741205480443,-625.03511259,0.00011797,2]
[355500667,1741205480452,-722.18,0.00011807,2]
[355500668,1741205480462,-625.03511259,0.00011866,2]
[355500669,1741205480471,-625.03511259,0.00011934,2]
[355500670,1741205480480,-625.03511259,0.00012003,2]
[355500671,1741205480489,-625.03511259,0.00012072,2]
[355500672,1741205480498,-722.18,0.00012081,2]
[355500673,1741205480508,-625.03511259,0.00012141,2]
[355500674,1741205480517,-625.03511259,0.0001221,2]
[355500675,1741205480527,-1380.010831,0.00012329,2]
[355500676,1741205480536,-1380.010823,0.00012329,2]
[355500677,1741205480546,-151.0,0.00012329,2]
[355500678,1741205480555,-153.374299,0.00012329,2]
[355500679,1741205480562,-722.18,0.00012355,2]
[355500680,1741205480569,-722.18,0.00012629,2]
[355500681,1741205480576,-722.18,0.00012903,2]
[355500682,1741205480583,-277.68378707,0.00012973,2]
[355500683,1741205481346,-625.03511259,0.00012279,2]
[355500684,1741205481356,-111.8717392,0.00012329,2]
[355500685,1741205481367,-39.1282608,0.00012329,2]
[355500686,1741205481376,-625.03511259,0.00012348,2]
[355500687,1741205481387,-625.03511259,0.00012417,2]
[355500688,1741205481396,-625.03511259,0.00012486,2]
[355500689,1741205481405,-84.77378556,0.00012555,2]
[355500690,1741205548402,500.0,9.084e-05,2]
[355500691,1741205548513,500.0,9.084e-05,2]
[355500692,1741205601231,1100.0,9.084e-05,2]
[355500693,1741205982264,814.95,8.584e-05,2]
[355500694,1741206169746,200.0,8.541e-05,2]
[355500695,1741206296931,200.10676563,8.498e-05,2]
[355500696,1741206306641,153.0,9.084e-05,3]
[355500697,1741206306870,153.0,0.00010258,3]
[355500699,1741206406466,272.56,0.000103,2]
[355500700,1741206430815,205.0,9.8e-05,2]
[355500701,1741206434945,249.65553935,0.000101,2]
[355500702,1741206441959,478.18485451,0.0001,2]
[355500703,1741206449863,250.0,0.00010289,2]
[355500704,1741206486029,150.37355297,0.0001,2]
[355500716,1741206502491,376.23197697,7.888e-05,2]
[355500717,1741206507680,449.18485993,9.828e-05,2]
[355500718,1741206509220,215.06140426,0.0001,2]
[355500721,1741206536897,1003.86,0.00010265,2]
[355500722,1741206570166,1000.0,0.00010207,2]
[355500723,1741206595964,177.25,8.164e-05,2]
[355500724,1741206596146,177.25,0.00010206,2]
[355500725,1741206607242,153.0,9.084e-05,3]
[355500731,1741206631486,-328.8,0.00010338,2]
[355500732,1741206631496,-150.0,0.00010351,7]
[355500733,1741206631506,-195.0001492,0.00010354,2]
[355500734,1741206631516,-189.67281779,0.00010381,2]
[355500735,1741206631528,-215.63718221,0.00010381,2]
[355500736,1741206631538,-500.0,0.00010454,2]
[355500737,1741206631547,-500.0,0.00010454,2]
[355500738,1741206631557,-1100.0,0.00010454,2]
[355500739,1741206631566,-1852.42,0.00010472,2]
[355500740,1741206631576,-153.0,0.00010519,3]
[355500741,1741206631585,-175.02,0.00010703,2]
[355500742,1741206631595,-222.522192,0.00010815,2]
[355500743,1741206631605,-330.11262579,0.00010848,2]
[355500744,1741206631617,-484.83737421,0.00010848,2]
[355500745,1741206631627,-159.13,0.00010927,2]
[355500746,1741206631636,-150.0,0.00010959,2]
[355500747,1741206631646,-150.0,0.00010999,2]
[355500748,1741206631656,-159.13,0.00011,2]
[355500749,1741206631666,-213.60791725,0.00011,2]
[355500750,1741206631690,-659.36537853,0.00011,2]
[355500751,1741206631708,-27500.0,0.00011,2]
[355500752,1741206631734,-4504.78028,0.00011,2]
[355500753,1741206631773,-2410.8,0.00011,2]
[355500764,1741206637311,-281.17284414,0.00011,2]
[355500765,1741206637324,-1300.00665634,0.00011,2]
[355500766,1741206637370,-2120.0,0.00011,2]
[355500767,1741206637381,-432.21771,0.00011,2]
[355500768,1741206637483,-528.04092757,0.00011,2]
[355500769,1741206637542,-6000.0,0.00011,2]
[355500770,1741206637555,-751.5,0.00011,2]
[355500771,1741206637601,-638.94000003,0.00011,2]
[355500802,1741206639581,-20008.04601996,0.00011,2]
[355500803,1741206639717,-260.426166,0.00011,2]
[355500804,1741206639920,-560.81799999,0.00011,2]
[355500805,1741206639950,-2144.09999998,0.00011,2]
[355500806,1741206639961,-261.58716707,0.00011,2]
[355500807,1741206640011,-60127.48188971,0.00011,2]
[355500808,1741206640020,-29925.0,0.00011,2]
[355500809,1741206640029,-550.0,0.00011,2]
[355500810,1741206640039,-1805.51923862,0.00011003,2]
[355500812,1741206640048,-9207.74226788,0.00011012,2]
[355500814,1741206640057,-7921.57508856,0.00011015,2]
[355500816,1741206640067,-9207.74226788,0.00011016,2]
[355500818,1741206640076,-1805.51923862,0.00011026,2]
[355500819,1741206640085,-25947.4318,0.00011038,2]
[355500821,1741206640094,-7921.57508856,0.00011041,2]
[355500822,1741206640104,-9207.74226788,0.00011053,2]
[355500823,1741206640113,-159.13,0.00011072,2]
[355500824,1741206640122,-1805.51923862,0.00011092,2]
[355500825,1741206640132,-7921.57508856,0.00011096,2]
[355500827,1741206640141,-203.03803616,0.000111,2]
[355500828,1741206640151,-203.03803613,0.000111,2]
[355500829,1741206640161,-203.03803613,0.000111,2]
[355500830,1741206640170,-44275.39771121,0.00011138,2]
[355500831,1741206640179,-203.03803613,0.0001114,2]
[355500832,1741206640189,-159.13,0.00011145,2]
[355500833,1741206640198,-159.13,0.00011218,2]
[355500834,1741206640207,-203.03803613,0.0001122,2]
[355500835,1741206640218,-500.0,0.00011258,2]
[355500836,1741206640227,-623.44,0.00011258,2]
[355500837,1741206640236,-500.0,0.00011258,2]
[355500838,1741206640247,-500.0,0.00011258,2]
[355500839,1741206640256,-500.0,0.00011258,2]
[355500840,1741206640267,-500.0,0.00011258,2]
[355500841,1741206640276,-500.0,0.00011258,2]
[355500842,1741206640286,-500.0,0.00011258,2]
[355500843,1741206640295,-587.33,0.00011258,2]
[355500844,1741206640304,-500.0,0.00011258,2]
[355500845,1741206640313,-500.0,0.00011259,2]
[355500846,1741206640322,-500.0,0.00011259,2]
[355500847,1741206640331,-500.0,0.00011259,2]
[355500848,1741206640342,-581.61,0.00011259,2]
[355500849,1741206640353,-500.0,0.00011259,2]
[355500850,1741206640362,-500.0,0.00011259,2]
[355500851,1741206640371,-500.0,0.00011259,2]
[355500852,1741206640380,-546.0,0.00011259,2]
[355500853,1741206640394,-500.0,0.00011259,2]
[355500854,1741206640403,-500.0,0.00011259,2]
[355500855,1741206640413,-570.92,0.00011259,2]
[355500856,1741206640423,-545.79,0.00011259,2]
[355500857,1741206640430,-500.0,0.00011259,2]
[355500858,1741206640439,-500.0,0.00011259,2]
[355500859,1741206640448,-500.0,0.00011259,2]
[355500860,1741206640458,-500.0,0.00011259,2]
[355500861,1741206640467,-500.0,0.00011259,2]
[355500862,1741206640476,-500.0,0.00011259,2]
[355500863,1741206640486,-500.0,0.00011259,2]
[355500864,1741206640496,-513.87,0.00011259,2]
[355500865,1741206640506,-214.04,0.00011259,2]
[355500866,1741206640515,-500.0,0.00011259,2]
[355500867,1741206640524,-512.64,0.00011259,2]
[355500868,1741206640533,-500.0,0.00011259,2]
[355500869,1741206640543,-500.0,0.00011259,2]
[355500870,1741206640552,-651.63,0.00011259,2]
[355500871,1741206640562,-500.0,0.00011259,2]
[355500872,1741206640570,-500.0,0.00011259,2]
[355500873,1741206640580,-510.55,0.00011259,2]
[355500874,1741206640589,-592.43993222,0.00011259,2]
[355500875,1741206640598,-588.74,0.00011259,2]
[355500876,1741206640607,-745.26,0.00011259,2]
[355500877,1741206640616,-500.0,0.00011259,2]
[355500878,1741206640626,-500.0,0.00011259,2]
[355500879,1741206640635,-500.0,0.00011259,2]
[355500880,1741206640644,-1312.06,0.00011259,2]
[355500881,1741206640654,-647.3,0.00011259,2]
[355500882,1741206640663,-500.0,0.00011259,2]
[355500883,1741206640833,-500.0,0.00011259,2]
[355500884,1741206640893,-500.0,0.00011259,2]
[355500885,1741206640903,-500.0,0.00011259,2]
[355500886,1741206640912,-500.0,0.00011259,2]
[355500887,1741206640921,-500.0,0.00011259,2]
[355500888,1741206640930,-500.0,0.00011259,2]
[355500889,1741206640939,-500.0,0.00011259,2]
[355500890,1741206640948,-547.99,0.00011259,2]
[355500891,1741206640957,-500.0,0.00011259,2]
[355500892,1741206640967,-500.0,0.00011259,2]
[355500893,1741206640976,-500.0,0.00011259,2]
[355500894,1741206640985,-621.87,0.00011259,2]
[355500895,1741206640997,-521.86,0.00011259,2]
[355500896,1741206641006,-500.0,0.00011259,2]
[355500897,1741206641016,-500.0,0.00011259,2]
[355500898,1741206641025,-500.0,0.00011259,2]
[355500899,1741206641034,-625.82,0.00011259,2]
[355500900,1741206641044,-500.0,0.00011259,2]
[355500901,1741206641054,-500.0,0.00011259,2]
[355500902,1741206641063,-500.0,0.00011259,2]
[355500903,1741206641073,-500.0,0.00011259,2]
[355500904,1741206641082,-583.31,0.00011259,2]
[355500905,1741206641091,-500.0,0.00011259,2]
[355500906,1741206641101,-853.75,0.00011259,2]
[355500907,1741206641110,-579.48,0.00011259,2]
[355500908,1741206641120,-500.0,0.00011259,2]
[355500909,1741206641130,-593.98,0.00011259,2]
[355500910,1741206641139,-500.0,0.00011259,2]
[355500911,1741206641149,-578.62,0.00011259,2]
[355500912,1741206641158,-535.56,0.00011259,2]
[355500913,1741206641167,-500.0,0.00011259,2]
[355500914,1741206641176,-795.92,0.00011259,2]
[355500915,1741206641185,-609.84,0.00011259,2]
[355500916,1741206641195,-715.43,0.00011259,2]
[355500917,1741206641204,-500.0,0.00011259,2]
[355500918,1741206641213,-554.63,0.00011259,2]
[355500919,1741206641223,-921.5,0.00011259,2]
[355500920,1741206641233,-500.0,0.00011259,2]
[355500921,1741206641243,-514.26,0.00011259,2]
[355500922,1741206641253,-500.0,0.00011259,2]
[355500923,1741206641263,-500.0,0.00011259,2]
[355500924,1741206641273,-984.87,0.00011259,2]
[355500925,1741206641283,-1479.64,0.00011259,2]
[355500926,1741206641292,-707.86,0.00011259,2]
[355500927,1741206641301,-500.0,0.00011259,2]
[355500928,1741206641311,-711.54,0.00011259,2]
[355500929,1741206641321,-557.4,0.00011259,2]
[355500930,1741206641330,-925.92,0.00011259,2]
[355500931,1741206641342,-915.75,0.00011259,2]
[355500932,1741206641353,-940.82,0.00011259,2]
[355500933,1741206641362,-500.0,0.00011259,2]
[355500934,1741206641371,-5169.23,0.00011259,2]
[355500935,1741206641381,-569.28,0.00011259,2]
[355500936,1741206641390,-500.0,0.00011259,2]
[355500937,1741206641399,-723.35,0.00011259,2]
[355500938,1741206641408,-503.09862992,0.00011259,2]
[355500939,1741206641418,-521.89,0.00011259,2]
[355500940,1741206641428,-979.06,0.00011259,2]
[355500941,1741206641437,-1459.82,0.00011259,2]
[355500942,1741206641446,-500.0,0.00011259,2]
[355500943,1741206641455,-500.0,0.00011259,2]
[355500944,1741206641464,-500.0,0.00011259,2]
[355500945,1741206641473,-500.0,0.00011259,2]
[355500946,1741206641483,-500.0,0.00011259,2]
[355500947,1741206641493,-505.15673492,0.0001126,2]
[355500948,1741206641502,-260.54931711,0.0001126,2]
[355500949,1741206641512,-500.0,0.0001126,2]
[355500950,1741206641522,-500.0,0.0001126,2]
[355500951,1741206641531,-500.0,0.0001126,2]
[355500952,1741206641540,-500.0,0.0001126,2]
[355500953,1741206641549,-500.0,0.0001126,2]
[355500954,1741206641559,-500.0,0.0001126,2]
[355500955,1741206641568,-500.0,0.0001126,2]
[355500956,1741206641577,-500.0,0.0001126,2]
[355500957,1741206641586,-500.0,0.0001126,2]
[355500958,1741206641595,-588.59,0.0001126,2]
[355500959,1741206641604,-500.0,0.0001126,2]
[355500960,1741206641614,-500.0,0.0001126,2]
[355500961,1741206641622,-843.12,0.0001126,2]
[355500962,1741206641631,-522.85,0.0001126,2]
[355500963,1741206641641,-500.0,0.0001126,2]
[355500964,1741206641650,-717.19,0.0001126,2]
[355500965,1741206641660,-500.0,0.0001126,2]
[355500966,1741206641669,-528.59,0.0001126,2]
[355500967,1741206641679,-500.0,0.0001126,2]
[355500968,1741206641688,-500.0,0.0001126,2]
[355500969,1741206641697,-500.0,0.0001126,2]
[355500970,1741206641707,-523.81,0.0001126,2]
[355500971,1741206641716,-500.0,0.0001126,2]
[355500972,1741206641726,-500.0,0.0001126,2]
[355500973,1741206641735,-500.0,0.0001126,2]
[355500974,1741206641748,-596.75402679,0.0001126,2]
[355500975,1741206641759,-500.0,0.0001126,2]
[355500976,1741206641770,-159.13,0.00011291,2]
[355500977,1741206641781,-203.03803613,0.000113,2]
[355500978,1741206641791,-159.13,0.00011364,2]
[355500979,1741206641801,-203.03803613,0.0001138,2]
[355500980,1741206641811,-150.0,0.00011386,2]
[355500981,1741206641820,-171.94361464,0.00011395,2]
[355500982,1741206641829,-1230.88,0.000114,2]
[355500983,1741206641839,-1936.8719,0.00011434,2]
[355500984,1741206641848,-159.13,0.00011437,2]
[355500985,1741206641859,-203.03803613,0.0001146,2]
[355500986,1741206641869,-1000.0,0.00011483,2]
[355500987,1741206641878,-3329.205,0.00011495,2]
[355500988,1741206641887,-307.434,0.00011495,2]
[355500989,1741206641897,-150.0,0.00011495,2]
[355500990,1741206641906,-2032.0,0.00011495,2]
[355500991,1741206641916,-159.13,0.0001151,2]
[355500992,1741206641925,-194.35054433,0.00011531,2]
[355500993,1741206641934,-500.0,0.00011531,2]
[355500994,1741206641944,-500.0,0.00011531,2]
[355500995,1741206641953,-261.38545879,0.00011531,2]
[355500996,1741206641962,-500.0,0.00011531,2]
[355500997,1741206641972,-500.0,0.00011531,2]
[355500998,1741206641981,-158.797035,0.00011531,2]
[355500999,1741206641991,-500.0,0.00011531,2]
[355501000,1741206642004,-500.0,0.00011532,2]
[355501001,1741206642015,-500.0,0.00011532,2]
[355501002,1741206642024,-500.0,0.00011532,2]
[355501003,1741206642033,-500.0,0.00011532,2]
[355501004,1741206642043,-500.0,0.00011532,2]
[355501005,1741206642052,-500.0,0.00011532,2]
[355501006,1741206642061,-500.0,0.00011532,2]
[355501007,1741206642071,-500.0,0.00011532,2]
[355501008,1741206642080,-500.0,0.00011532,2]
[355501009,1741206642090,-500.0,0.00011532,2]
[355501010,1741206642099,-500.0,0.00011532,2]
[355501011,1741206642109,-362.37333323,0.00011532,2]
[355501012,1741206642119,-500.0,0.00011532,2]
[355501013,1741206642128,-500.0,0.00011532,2]
[355501014,1741206642137,-490.21443769,0.00011532,2]
[355501015,1741206642146,-535.95,0.00011532,2]
[355501016,1741206642156,-500.0,0.00011532,2]
[355501017,1741206642166,-500.0,0.00011532,2]